fUST/lending_fUST_20260217
["ID","MTS","AMOUNT","RATE_DAILY","PERIOD"]
[405814814,1771333852242,-550.0,0.00017137,2]
[405814816,1771333852251,-657.0,0.00017137,2]
[405814818,1771333852260,-357.0,0.00017137,2]
[405814820,1771333852270,-626.0,0.00017137,2]
[405814822,1771333852279,-360.0,0.00017137,2]
[405814824,1771333852288,-292.0,0.00017137,2]
[405814826,1771333852298,-360.0,0.00017137,2]
[405814828,1771333852307,-380.0,0.00017137,2]
[405814830,1771333852316,-357.0,0.00017137,2]
[405814832,1771333852326,-360.0,0.00017137,2]
[405814834,1771333852335,-460.0,0.00017137,2]
[405814836,1771333852343,-319.0,0.00017137,2]
[405814838,1771333852352,-300.0,0.00017137,2]
[405814840,1771333852361,-251.0,0.00017178,2]
[405814842,1771333852372,-1135.14,0.000172,3]
[405814843,1771333852381,-567.56,0.000172,3]
[405814846,1771333852391,-270.0,0.00017218,2]
[405814848,1771333852400,-431.0,0.00017218,2]
[405814850,1771333852410,-600.0,0.00017218,2]
[405814851,1771333852419,-600.0,0.00017218,2]
[405814854,1771333852429,-600.0,0.00017218,2]
[405814856,1771333852439,-541.0,0.00017218,2]
[405814858,1771333852448,-500.0,0.00017218,2]
[405814859,1771333852458,-500.0,0.00017218,2]
[405814861,1771333852467,-500.0,0.00017218,2]
[405814863,1771333852476,-500.0,0.00017218,2]
[405814865,1771333852486,-438.0,0.00017218,2]
[405814867,1771333852495,-600.0,0.00017218,2]
[405814869,1771333852505,-600.0,0.00017218,2]
[405814871,1771333852515,-600.0,0.00017218,2]
[405814873,1771333852525,-600.0,0.00017218,2]
[405814875,1771333852534,-579.0,0.00017218,2]
[405814877,1771333852543,-841.0,0.00017218,2]
[405814879,1771333852553,-600.0,0.00017218,2]
[405814881,1771333852562,-600.0,0.00017218,2]
[405814893,1771333852663,-600.0,0.00017218,2]
[405814895,1771333852673,-600.0,0.00017218,2]
[405814897,1771333852682,-436.0,0.00017218,2]
[405814899,1771333852692,-841.0,0.00017218,2]
[405814901,1771333852701,-550.0,0.00017218,2]
[405814902,1771333852711,-456.0,0.00017218,2]
[405814904,1771333852720,-431.50194529,0.0001726,2]
[405814906,1771333852729,-500.0,0.0001726,2]
[405814908,1771333852738,-593.27482401,0.0001726,2]
[405814910,1771333852747,-560.21491605,0.0001726,2]
[405814912,1771333852756,-500.0,0.0001726,2]
[405814914,1771333852765,-500.0,0.0001726,2]
[405814916,1771333852775,-500.0,0.0001726,2]
[405814918,1771333852784,-500.0,0.0001726,2]
[405814920,1771333852793,-500.0,0.0001726,2]
[405814922,1771333852802,-155.32354007,0.0001726,2]
[405814924,1771333852811,-536.39,0.0001726,2]
[405814926,1771333852821,-427.26430044,0.0001726,2]
[405814928,1771333852830,-500.0,0.0001726,2]
[405814930,1771333852839,-500.0,0.0001726,2]
[405814932,1771333852847,-500.0,0.0001726,2]
[405814934,1771333852856,-500.0,0.0001726,2]
[405814936,1771333852865,-500.0,0.0001726,2]
[405814938,1771333852875,-687.5,0.0001726,2]
[405814940,1771333852884,-500.0,0.0001726,2]
[405814942,1771333852893,-500.0,0.0001726,2]
[405814944,1771333852902,-576.95,0.0001726,2]
[405814946,1771333852911,-500.0,0.0001726,2]
[405814948,1771333852920,-162.09755812,0.0001726,2]
[405814950,1771333852929,-500.0,0.0001726,2]
[405814952,1771333852938,-209.16194377,0.0001726,2]
[405814954,1771333852948,-535.7,0.0001726,2]
[405814955,1771333852956,-500.0,0.0001726,2]
[405814957,1771333852965,-500.0,0.0001726,2]
[405814959,1771333852975,-500.0,0.0001726,2]
[405814961,1771333852985,-317.59790845,0.0001726,2]
[405814963,1771333852994,-500.0,0.0001726,2]
[405814965,1771333853003,-500.0,0.0001726,2]
[405814967,1771333853013,-516.83,0.0001726,2]
[405814969,1771333853023,-500.0,0.0001726,2]
[405814971,1771333853032,-500.0,0.0001726,2]
[405814973,1771333853041,-500.0,0.0001726,2]
[405814975,1771333853051,-500.0,0.0001726,2]
[405814977,1771333853060,-500.0,0.0001726,2]
[405814979,1771333853070,-386.86082202,0.0001726,2]
[405814981,1771333853080,-500.0,0.0001726,2]
[405814983,1771333853090,-745.29,0.0001726,2]
[405814985,1771333853100,-500.0,0.0001726,2]
[405814987,1771333853111,-500.0,0.0001726,2]
[405814989,1771333853120,-500.0,0.0001726,2]
[405814991,1771333853131,-5962.75,0.0001726,2]
[405814993,1771333853141,-500.0,0.0001726,2]
[405814995,1771333853151,-2833.52,0.0001726,2]
[405814997,1771333853165,-500.0,0.0001726,2]
[405814999,1771333853174,-794.37,0.0001726,2]
[405815001,1771333853184,-458.32,0.0001726,2]
[405815003,1771333853194,-366.30204768,0.0001726,2]
[405815005,1771333853205,-500.0,0.0001726,2]
[405815007,1771333853216,-536.64983249,0.0001726,2]
[405815009,1771333853226,-336.18698982,0.0001726,2]
[405815011,1771333853235,-500.0,0.0001726,2]
[405815012,1771333853247,-500.0,0.0001726,2]
[405815014,1771333853258,-500.0,0.0001726,2]
[405815016,1771333853267,-500.0,0.0001726,2]
[405815018,1771333853276,-500.0,0.0001726,2]
[405815020,1771333853286,-676.25,0.0001726,2]
[405815022,1771333853296,-500.0,0.0001726,2]
[405815024,1771333853305,-541.75156139,0.0001726,2]
[405815026,1771333853315,-281.00226908,0.0001726,2]
[405815028,1771333853325,-500.0,0.0001726,2]
[405815030,1771333853334,-500.0,0.0001726,2]
[405815032,1771333853343,-500.0,0.0001726,2]
[405815034,1771333853351,-500.0,0.0001726,2]
[405815036,1771333853362,-500.0,0.0001726,2]
[405815038,1771333853371,-640.78,0.0001726,2]
[405815040,1771333853381,-373.94290046,0.0001726,2]
[405815042,1771333853391,-500.0,0.0001726,2]
[405815044,1771333853401,-541.81121375,0.0001726,2]
[405815046,1771333853410,-500.0,0.0001726,2]
[405815048,1771333853420,-1641.04,0.0001726,2]
[405815049,1771333853429,-500.0,0.0001726,2]
[405815051,1771333853439,-500.0,0.0001726,2]
[405815053,1771333853448,-221.25545696,0.0001726,2]
[405815055,1771333853457,-500.0,0.0001726,2]
[405815057,1771333853467,-8287.17,0.0001726,2]
[405815059,1771333853477,-500.0,0.0001726,2]
[405815061,1771333853487,-339.79749132,0.0001726,2]
[405815063,1771333853496,-420.43953554,0.0001726,2]
[405815065,1771333853506,-500.0,0.0001726,2]
[405815067,1771333853515,-1095.31,0.0001726,2]
[405815069,1771333853524,-593.16,0.0001726,2]
[405815071,1771333853534,-504.43911867,0.0001726,2]
[405815073,1771333853543,-500.0,0.0001726,2]
[405815075,1771333853552,-737.15,0.0001726,2]
[405815077,1771333853561,-505.27893557,0.0001726,2]
[405815078,1771333853571,-293.35176012,0.0001726,2]
[405815080,1771333853579,-500.0,0.0001726,2]
[405815082,1771333853589,-1099.82,0.0001726,2]
[405815084,1771333853598,-500.0,0.0001726,2]
[405815086,1771333853608,-500.0,0.0001726,2]
[405815088,1771333853617,-500.0,0.0001726,2]
[405815090,1771333853626,-500.0,0.0001726,2]
[405815092,1771333853636,-41414.35,0.0001726,2]
[405815094,1771333853645,-500.0,0.0001726,2]
[405815096,1771333853654,-500.0,0.0001726,2]
[405815098,1771333853663,-500.0,0.0001726,2]
[405815100,1771333853672,-1481.0,0.00017274,2]
[405815102,1771333853682,-750.0,0.00017274,2]
[405815104,1771333853691,-327.0,0.00017274,2]
[405815105,1771333853700,-587.0,0.00017279,2]
[405815107,1771333853709,-700.0,0.0001729,2]
[405815109,1771333853718,-933.0,0.00017337,2]
[405815111,1771333853727,-700.0,0.00017337,2]
[405815113,1771333853736,-684.0,0.00017337,2]
[405815115,1771333853745,-2351.0,0.00017434,2]
[405815117,1771333853755,-980.10045765,0.00017469,16]
[405815119,1771333853764,-500.0,0.00017531,2]
[405815121,1771333853773,-500.0,0.00017534,2]
[405815123,1771333853782,-500.0,0.00017534,2]
[405815124,1771333853791,-500.0,0.00017534,2]
[405815126,1771333853801,-500.0,0.00017534,2]
[405815128,1771333853811,-500.0,0.00017534,2]
[405815130,1771333853820,-500.0,0.00017534,2]
[405815132,1771333853830,-536.39,0.00017534,2]
[405815134,1771333853839,-500.0,0.00017534,2]
[405815136,1771333853848,-349.60752177,0.00017534,2]
[405815138,1771333853857,-533.42384893,0.00017534,2]
[405815140,1771333853867,-500.0,0.00017534,2]
[405815142,1771333853876,-500.0,0.00017534,2]
[405815144,1771333853885,-687.5,0.00017534,2]
[405815145,1771333853895,-566.90900908,0.00017534,2]
[405815147,1771333853905,-500.0,0.00017534,2]
[405815149,1771333853914,-576.95,0.00017534,2]
[405815151,1771333853923,-500.0,0.00017534,2]
[405815153,1771333853932,-500.0,0.00017534,2]
[405815155,1771333853941,-535.7,0.00017534,2]
[405815157,1771333853950,-500.0,0.00017534,2]
[405815159,1771333853960,-500.0,0.00017534,2]
[405815161,1771333853970,-500.0,0.00017534,2]
[405815163,1771333853979,-500.0,0.00017534,2]
[405815165,1771333853989,-500.0,0.00017534,2]
[405815166,1771333853998,-516.83,0.00017534,2]
[405815168,1771333854007,-500.0,0.00017534,2]
[405815170,1771333854016,-500.0,0.00017534,2]
[405815172,1771333854025,-500.0,0.00017534,2]
[405815174,1771333854035,-207.77115913,0.00017534,2]
[405815176,1771333854044,-500.0,0.00017534,2]
[405815178,1771333854052,-500.0,0.00017534,2]
[405815180,1771333854060,-745.29,0.00017534,2]
[405815182,1771333854070,-500.0,0.00017534,2]
[405815183,1771333854079,-500.0,0.00017534,2]
[405815185,1771333854089,-575.48913301,0.00017534,2]
[405815187,1771333854098,-5962.75,0.00017534,2]
[405815189,1771333854109,-547.54539346,0.00017534,2]
[405815191,1771333854118,-2833.52,0.00017534,2]
[405815193,1771333854127,-500.0,0.00017534,2]
[405815195,1771333854137,-794.37,0.00017534,2]
[405815197,1771333854147,-500.0,0.00017534,2]
[405815199,1771333854157,-205.58417919,0.00017534,2]
[405815201,1771333854171,-500.0,0.00017534,2]
[405815203,1771333854180,-500.0,0.00017534,2]
[405815205,1771333854191,-500.0,0.00017534,2]
[405815207,1771333854200,-500.0,0.00017534,2]
[405815209,1771333854211,-676.25,0.00017534,2]
[405815211,1771333854221,-500.0,0.00017534,2]
[405815213,1771333854231,-500.0,0.00017534,2]
[405815215,1771333854241,-500.0,0.00017534,2]
[405815217,1771333854250,-500.0,0.00017534,2]
[405815219,1771333854259,-500.0,0.00017534,2]
[405815221,1771333854268,-500.0,0.00017534,2]
[405815223,1771333854277,-640.78,0.00017534,2]
[405815225,1771333854287,-500.0,0.00017534,2]
[405815227,1771333854295,-500.0,0.00017534,2]
[405815228,1771333854304,-1641.04,0.00017534,2]
[405815230,1771333854314,-500.0,0.00017534,2]
[405815232,1771333854323,-500.0,0.00017534,2]
[405815234,1771333854332,-500.0,0.00017534,2]
[405815236,1771333854341,-8287.17,0.00017534,2]
[405815238,1771333854350,-500.0,0.00017534,2]
[405815240,1771333854360,-500.0,0.00017534,2]
[405815242,1771333854369,-1095.31,0.00017534,2]
[405815244,1771333854377,-593.16,0.00017534,2]
[405815246,1771333854387,-500.0,0.00017534,2]
[405815248,1771333854397,-737.15,0.00017534,2]
[405815250,1771333854406,-514.48090272,0.00017534,2]
[405815252,1771333854415,-1099.82,0.00017534,2]
[405815253,1771333854424,-500.0,0.00017534,2]
[405815255,1771333854433,-500.0,0.00017534,2]
[405815257,1771333854443,-500.0,0.00017534,2]
[405815259,1771333854452,-500.0,0.00017534,2]
[405815261,1771333854461,-41414.35,0.00017534,2]
[405815263,1771333854470,-500.0,0.00017534,2]
[405815265,1771333854479,-500.0,0.00017534,2]
[405815267,1771333854487,-350.0,0.00017534,2]
[405815269,1771333854497,-160.07683315,0.00017536,17]
[405815271,1771333854506,-600.0,0.00017537,2]
[405815273,1771333854514,-600.0,0.00017537,2]
[405815275,1771333854524,-600.0,0.00017537,2]
[405815285,1771333854602,-583.0,0.00017537,2]
[405815287,1771333854618,-800.0,0.00017537,2]
[405815288,1771333854627,-800.0,0.00017537,2]
[405815290,1771333854636,-668.0,0.00017537,2]
[405815292,1771333854645,-550.0,0.00017537,2]
[405815294,1771333854655,-254.0,0.00017537,2]
[405815296,1771333854663,-417.0,0.00017537,2]
[405815298,1771333854672,-253.0,0.00017537,2]
[405815300,1771333854681,-360.0,0.00017589,2]
[405815302,1771333854691,-352.0,0.00017589,2]
[405815304,1771333854700,-720.0,0.00017614,2]
[405815306,1771333854708,-168.0,0.00017643,2]
[405815308,1771333854718,-368.0,0.00017688,2]
[405815310,1771333854727,-449.603125,0.00017698,2]
[405815312,1771333854736,-1175.0678826,0.00017722,2]
[405815314,1771333854746,-360.0,0.00017726,2]
[405815316,1771333854754,-250.0,0.00017767,2]
[405815318,1771333854763,-150.029397,0.00017781,30]
[405815320,1771333854772,-500.0,0.00017808,2]
[405815321,1771333854782,-500.0,0.00017808,2]
[405815323,1771333854791,-500.0,0.00017808,2]
[405815325,1771333854799,-500.0,0.00017808,2]
[405815326,1771333854808,-500.0,0.00017808,2]
[405815327,1771333854818,-500.0,0.00017808,2]
[405815328,1771333854827,-536.39,0.00017808,2]
[405815329,1771333854835,-500.0,0.00017808,2]
[405815330,1771333854844,-500.0,0.00017808,2]
[405815331,1771333854853,-500.0,0.00017808,2]
[405815332,1771333854862,-687.5,0.00017808,2]
[405815333,1771333854871,-500.0,0.00017808,2]
[405815334,1771333854880,-576.95,0.00017808,2]
[405815335,1771333854889,-500.0,0.00017808,2]
[405815336,1771333854898,-500.0,0.00017808,2]
[405815337,1771333854907,-535.7,0.00017808,2]
[405815338,1771333854916,-500.0,0.00017808,2]
[405815339,1771333854925,-500.0,0.00017808,2]
[405815340,1771333854934,-500.0,0.00017808,2]
[405815341,1771333854943,-500.0,0.00017808,2]
[405815342,1771333854952,-512.57057647,0.00017808,2]
[405815343,1771333854960,-516.83,0.00017808,2]
[405815344,1771333854969,-500.0,0.00017808,2]
[405815345,1771333854978,-500.0,0.00017808,2]
[405815346,1771333854987,-500.0,0.00017808,2]
[405815347,1771333854996,-500.0,0.00017808,2]
[405815348,1771333855006,-500.0,0.00017808,2]
[405815349,1771333855015,-745.29,0.00017808,2]
[405815350,1771333855024,-500.0,0.00017808,2]
[405815351,1771333855034,-500.0,0.00017808,2]
[405815352,1771333855043,-5962.75,0.00017808,2]
[405815354,1771333855053,-2833.52,0.00017808,2]
[405815355,1771333855063,-500.0,0.00017808,2]
[405815357,1771333855072,-794.37,0.00017808,2]
[405815359,1771333855082,-500.0,0.00017808,2]
[405815361,1771333855090,-500.0,0.00017808,2]
[405815363,1771333855100,-500.0,0.00017808,2]
[405815365,1771333855111,-164.66861109,0.00017808,2]
[405815367,1771333855122,-271.65610739,0.00017808,2]
[405815369,1771333855132,-676.25,0.00017808,2]
[405815371,1771333855142,-500.0,0.00017808,2]
[405815373,1771333855152,-500.0,0.00017808,2]
[405815375,1771333855168,-500.0,0.00017808,2]
[405815377,1771333855178,-500.0,0.00017808,2]
[405815379,1771333855188,-500.0,0.00017808,2]
[405815381,1771333855199,-500.0,0.00017808,2]
[405815383,1771333855211,-640.78,0.00017808,2]
[405815386,1771333855220,-500.0,0.00017808,2]
[405815387,1771333855230,-500.0,0.00017808,2]
[405815389,1771333855240,-1641.04,0.00017808,2]
[405815391,1771333855250,-500.0,0.00017808,2]
[405815393,1771333855259,-500.0,0.00017808,2]
[405815395,1771333855269,-500.0,0.00017808,2]
[405815397,1771333855281,-8287.17,0.00017808,2]
[405815400,1771333855295,-580.49651593,0.00017808,2]
[405815401,1771333855304,-500.0,0.00017808,2]
[405815403,1771333855315,-1095.31,0.00017808,2]
[405815405,1771333855326,-593.16,0.00017808,2]
[405815407,1771333855338,-500.0,0.00017808,2]
[405815409,1771333855347,-737.15,0.00017808,2]
[405815410,1771333855359,-1099.82,0.00017808,2]
[405815413,1771333855370,-500.0,0.00017808,2]
[405815415,1771333855386,-500.0,0.00017808,2]
[405815417,1771333855398,-500.0,0.00017808,2]
[405815419,1771333855407,-500.0,0.00017808,2]
[405815420,1771333855417,-41414.35,0.00017808,2]
[405815422,1771333855426,-500.0,0.00017808,2]
[405815424,1771333855435,-150.0,0.00017808,2]
[405815426,1771333855444,-160.0,0.00017835,4]
[405815428,1771333855454,-636.38619127,0.000179,2]
[405815430,1771333855463,-980.10045765,0.00017937,20]
[405815432,1771333855472,-162.0,0.00017938,2]
[405815434,1771333855482,-600.0,0.00017938,2]
[405815436,1771333855491,-204.0,0.00017938,2]
[405815438,1771333855501,-500.0,0.00017938,2]
[405815440,1771333855510,-500.0,0.00017938,2]
[405815442,1771333855519,-462.0,0.00017938,2]
[405815445,1771333855530,-600.0,0.00017938,2]
[405815446,1771333855539,-600.0,0.00017938,2]
[405815448,1771333855548,-587.0,0.00017938,2]
[405815450,1771333855557,-360.0,0.00017938,2]
[405815452,1771333855567,-600.0,0.00017938,2]
[405815454,1771333855577,-600.0,0.00017938,2]
[405815456,1771333855586,-501.0,0.00017938,2]
[405815458,1771333855595,-360.0,0.00017938,2]
[405815460,1771333855604,-603.0,0.00017938,2]
[405815463,1771333855615,-1000.0,0.0001799,2]
[405815464,1771333855624,-1702.46519208,0.00017999,2]
[405815466,1771333855634,-967992.04283864,0.00018,2]
[405815469,1771333855643,-145009.78552318,0.00018,2]
[405815471,1771333855653,-1151.6307133,0.00018,2]
[405815472,1771333855662,-1074.8033963,0.00018,2]
[405815474,1771333855671,-108518.16275739,0.00018,2]
[405815476,1771333855680,-26009.21208894,0.00018,2]
[405815478,1771333855689,-150.029397,0.00018,30]
[405815480,1771333855699,-506.2758027,0.00018,2]
[405815482,1771333855709,-750.0,0.00018033,2]
[405815484,1771333855718,-346.0,0.00018033,2]
[405815486,1771333855728,-300.0,0.00018059,2]
[405815488,1771333855738,-432.52657656,0.00018082,2]
[405815490,1771333855747,-500.0,0.00018082,2]
[405815492,1771333855756,-500.0,0.00018082,2]
[405815494,1771333855765,-500.0,0.00018082,2]
[405815496,1771333855774,-500.0,0.00018082,2]
[405815498,1771333855784,-500.0,0.00018082,2]
[405815500,1771333855793,-536.39,0.00018082,2]
[405815502,1771333855802,-500.0,0.00018082,2]
[405815504,1771333855811,-500.0,0.00018082,2]
[405815506,1771333855821,-500.0,0.00018082,2]
[405815508,1771333855830,-687.5,0.00018082,2]
[405815510,1771333855839,-500.0,0.00018082,2]
[405815512,1771333855848,-576.95,0.00018082,2]
[405815514,1771333855856,-500.0,0.00018082,2]
[405815516,1771333855867,-500.0,0.00018082,2]
[405815518,1771333855876,-535.7,0.00018082,2]
[405815520,1771333855885,-500.0,0.00018082,2]
[405815522,1771333855894,-500.0,0.00018082,2]
[405815524,1771333855904,-533.64606104,0.00018082,2]
[405815526,1771333855912,-500.0,0.00018082,2]
[405815528,1771333855922,-516.83,0.00018082,2]
[405815530,1771333855931,-500.0,0.00018082,2]
[405815532,1771333855939,-500.0,0.00018082,2]
[405815534,1771333855948,-500.0,0.00018082,2]
[405815536,1771333855958,-500.0,0.00018082,2]
[405815538,1771333855967,-500.0,0.00018082,2]
[405815540,1771333855977,-745.29,0.00018082,2]
[405815542,1771333855986,-500.0,0.00018082,2]
[405815544,1771333855995,-500.0,0.00018082,2]
[405815546,1771333856005,-5962.75,0.00018082,2]
[405815548,1771333856014,-2833.52,0.00018082,2]
[405815549,1771333856024,-500.0,0.00018082,2]
[405815551,1771333856033,-794.37,0.00018082,2]
[405815553,1771333856043,-500.0,0.00018082,2]
[405815555,1771333856054,-500.0,0.00018082,2]
[405815557,1771333856064,-500.0,0.00018082,2]
[405815559,1771333856074,-676.25,0.00018082,2]
[405815562,1771333856084,-500.0,0.00018082,2]
[405815564,1771333856094,-500.0,0.00018082,2]
[405815566,1771333856103,-500.0,0.00018082,2]
[405815568,1771333856113,-500.0,0.00018082,2]
[405815569,1771333856123,-500.0,0.00018082,2]
[405815571,1771333856132,-500.0,0.00018082,2]
[405815573,1771333856141,-640.78,0.00018082,2]
[405815576,1771333856151,-500.0,0.00018082,2]
[405815577,1771333856162,-500.0,0.00018082,2]
[405815579,1771333856172,-1641.04,0.00018082,2]
[405815582,1771333856182,-500.0,0.00018082,2]
[405815584,1771333856192,-500.0,0.00018082,2]
[405815585,1771333856202,-500.0,0.00018082,2]
[405815586,1771333856212,-8287.17,0.00018082,2]
[405815587,1771333856222,-313.31331191,0.00018082,2]
[405815588,1771333856233,-1095.31,0.00018082,2]
[405815589,1771333856244,-593.16,0.00018082,2]
[405815590,1771333856254,-500.0,0.00018082,2]
[405815591,1771333856263,-737.15,0.00018082,2]
[405815592,1771333856272,-1099.82,0.00018082,2]
[405815593,1771333856282,-500.0,0.00018082,2]
[405815594,1771333856291,-500.0,0.00018082,2]
[405815595,1771333856300,-500.0,0.00018082,2]
[405815596,1771333856310,-500.0,0.00018082,2]
[405815597,1771333856320,-41414.35,0.00018082,2]
[405815598,1771333856329,-500.0,0.00018082,2]
[405815599,1771333856338,-551.01795286,0.00018082,2]
[405815600,1771333856348,-743.45912368,0.0001812,2]
[405815601,1771333856357,-400.0,0.00018137,2]
[405815602,1771333856446,-300.0,0.00018137,2]
[405815603,1771333856455,-262.1930848,0.00018168,2]
[405815604,1771333856465,-239.698,0.0001822,2]
[405815605,1771333856475,-556.362,0.0001822,2]
[405815606,1771333856484,-150.029397,0.00018247,30]
[405815607,1771333856494,-318.12812596,0.00018247,2]
[405815608,1771333856502,-531.461,0.00018274,2]
[405815609,1771333856512,-181.0,0.00018274,2]
[405815610,1771333856522,-500.0,0.00018356,2]
[405815611,1771333856531,-460.37020679,0.00018356,2]
[405815612,1771333856540,-500.0,0.00018356,2]
[405815613,1771333856549,-500.0,0.00018356,2]
[405815614,1771333856559,-500.0,0.00018356,2]
[405815615,1771333856568,-536.39,0.00018356,2]
[405815616,1771333856578,-500.0,0.00018356,2]
[405815617,1771333856588,-500.0,0.00018356,2]
[405815618,1771333856597,-500.0,0.00018356,2]
[405815619,1771333856607,-687.5,0.00018356,2]
[405815620,1771333856617,-500.0,0.00018356,2]
[405815621,1771333856626,-576.95,0.00018356,2]
[405815622,1771333856635,-500.0,0.00018356,2]
[405815623,1771333856644,-500.0,0.00018356,2]
[405815624,1771333856654,-535.7,0.00018356,2]
[405815625,1771333856663,-500.0,0.00018356,2]
[405815626,1771333856672,-500.0,0.00018356,2]
[405815627,1771333856681,-500.0,0.00018356,2]
[405815628,1771333856690,-516.83,0.00018356,2]
[405815629,1771333856700,-500.0,0.00018356,2]
[405815630,1771333856710,-518.60351204,0.00018356,2]
[405815631,1771333856719,-357.47886382,0.00018356,2]
[405815632,1771333856728,-500.0,0.00018356,2]
[405815633,1771333856737,-500.0,0.00018356,2]
[405815634,1771333856748,-745.29,0.00018356,2]
[405815635,1771333856757,-500.0,0.00018356,2]
[405815636,1771333856767,-500.0,0.00018356,2]
[405815637,1771333856777,-5962.75,0.00018356,2]
[405815638,1771333856786,-2833.52,0.00018356,2]
[405815639,1771333856795,-500.0,0.00018356,2]
[405815640,1771333856805,-794.37,0.00018356,2]
[405815641,1771333856814,-500.0,0.00018356,2]
[405815642,1771333856824,-269.99559552,0.00018356,2]
[405815643,1771333856834,-500.0,0.00018356,2]
[405815644,1771333856843,-676.25,0.00018356,2]
[405815645,1771333856853,-500.0,0.00018356,2]
[405815646,1771333856863,-500.0,0.00018356,2]
[405815647,1771333856873,-500.0,0.00018356,2]
[405815648,1771333856883,-500.0,0.00018356,2]
[405815649,1771333856892,-500.0,0.00018356,2]
[405815650,1771333856901,-500.0,0.00018356,2]
[405815651,1771333856911,-640.78,0.00018356,2]
[405815652,1771333856920,-500.0,0.00018356,2]
[405815653,1771333856930,-500.0,0.00018356,2]
[405815654,1771333856939,-1641.04,0.00018356,2]
[405815655,1771333856949,-500.0,0.00018356,2]
[405815656,1771333856958,-463.65377978,0.00018356,2]
[405815657,1771333856967,-500.0,0.00018356,2]
[405815658,1771333856976,-8287.17,0.00018356,2]
[405815659,1771333856987,-1095.31,0.00018356,2]
[405815660,1771333856996,-593.16,0.00018356,2]
[405815661,1771333857006,-500.0,0.00018356,2]
[405815662,1771333857015,-737.15,0.00018356,2]
[405815663,1771333857025,-1099.82,0.00018356,2]
[405815665,1771333857035,-500.0,0.00018356,2]
[405815666,1771333857043,-500.0,0.00018356,2]
[405815667,1771333857053,-500.0,0.00018356,2]
[405815668,1771333857062,-500.0,0.00018356,2]
[405815669,1771333857072,-41414.35,0.00018356,2]
[405815671,1771333857082,-500.0,0.00018356,2]
[405815673,1771333857091,-250.0,0.00018356,2]
[405815675,1771333857100,-449.603125,0.00018359,2]
[405815677,1771333857110,-980.10045765,0.00018404,24]
[405815679,1771333857120,-177.498764,0.00018493,2]
[405815681,1771333857129,-150.0,0.00018502,2]
[405815683,1771333857139,-1090.52398466,0.00018579,2]
[405815684,1771333857148,-500.0,0.0001863,2]
[405815685,1771333857158,-500.0,0.0001863,2]
[405815686,1771333857170,-500.0,0.0001863,2]
[405815687,1771333857179,-500.0,0.0001863,2]
[405815688,1771333857189,-536.39,0.0001863,2]
[405815689,1771333857199,-500.0,0.0001863,2]
[405815690,1771333857208,-500.0,0.0001863,2]
[405815691,1771333857218,-500.0,0.0001863,2]
[405815692,1771333857227,-687.5,0.0001863,2]
[405815693,1771333857239,-500.0,0.0001863,2]